bitfinex-derivatives/quotes_SOLF0:USTF0_20251122
["timestamp","ask_amount","ask_price","bid_price","bid_amount"]
[1763820355767,0.05602717,126.41,126.39,7.1817647]
[1763820355967,3.08,126.44,126.39,7.1817647]
[1763820356171,3.08,126.44,126.39,0.0566647]
[1763820356970,3.08,126.42,126.39,7.1817647]
[1763820357570,3.08,126.42,126.39,0.0566647]
[1763820360272,3.08,126.42,126.37,16.7]
[1763820361170,3.08,126.42,126.33,16.7]
[1763820361372,3.13367469,126.39,126.36,0.05524171]
[1763820361569,0.05367469,126.39,126.36,0.05154792]
[1763820362080,3.13367469,126.39,126.36,0.05154792]
[1763820364079,3.13367469,126.39,126.36,7.17844792]
[1763820364583,3.13367469,126.39,126.36,0.05154792]
[1763820365372,3.08,126.35,126.29,110.9273]
[1763820366167,3.08,126.35,126.31,7.1296]
[1763820366371,0.05422226,126.34,126.32,0.05170412]
[1763820366684,3.20422226,126.34,126.32,0.05170412]
[1763820367374,0.05422226,126.34,126.32,0.05170412]
[1763820368476,3.20422226,126.34,126.32,0.05170412]
[1763820370882,0.05422226,126.34,126.32,0.05170412]
[1763820371583,0.05422226,126.34,126.32,7.18090412]
[1763820371790,0.05422226,126.34,126.33,2.40584638]
[1763820372377,3.15,126.39,126.32,2.4575505]
[1763820372581,3.15,126.39,126.34,2.40584638]
[1763820373180,3.15,126.39,126.34,7.1279]
[1763820373485,3.15,126.37,126.35,0.05199187]
[1763820375177,0.05253393,126.38,126.36,7.1269]
[1763820375483,3.15,126.43,126.37,2.40584638]
[1763820376780,3.15,126.4,126.34,16.72]
[1763820377785,0.05421396,126.38,126.36,0.05927406]
[1763820378487,3.20421396,126.38,126.36,0.05927406]
[1763820378683,0.05421396,126.38,126.36,0.05927406]
[1763820378888,0.05421396,126.38,126.37,2.40584638]
[1763820380895,0.05421396,126.38,126.36,7.18617406]
[1763820381885,3.20421396,126.38,126.36,0.05927406]
[1763820384385,3.20421396,126.38,126.29,110.9251]
[1763820384692,3.15,126.38,126.3,16.72]
[1763820385091,3.15,126.34,126.3,16.72]
[1763820385395,3.15,126.32,126.31,0.05708926]
[1763820386689,3.20814086,126.33,126.31,0.05708926]
[1763820386891,3.20814086,126.33,126.24,6.67637672]
[1763820387187,3.15,126.33,126.25,16.72]
[1763820387392,3.15,126.32,126.25,16.72]
[1763820387987,3.20204674,126.3,126.27,0.05873601]
[1763820391294,0.05204674,126.3,126.27,0.05873601]
[1763820391494,0.05204674,126.3,126.27,7.19063601]
[1763820391893,0.05204674,126.3,126.27,0.05873601]
[1763820392493,3.20204674,126.3,126.27,0.05873601]
[1763820393688,3.20204674,126.3,126.27,7.19073601]
[1763820394990,3.20204674,126.3,126.27,0.05873601]
[1763820398793,3.20204674,126.3,126.27,7.19073601]
[1763820399797,3.20204674,126.3,126.27,0.05873601]
[1763820402792,3.20204674,126.3,126.27,2.46604434]
[1763820402992,0.05204674,126.3,126.28,16.72]
[1763820403197,0.05204674,126.3,126.29,2.40730833]
[1763820403801,0.05204674,126.3,126.28,23.8514]
[1763820404097,0.05204674,126.3,126.29,2.40730833]
[1763820404807,0.05204674,126.3,126.28,23.8514]
[1763820406102,3.01,126.36,126.3,7.1303]
[1763820407106,3.76059756,126.37,126.3,7.1303]
[1763820407107,3.01,126.33,126.32,0.05782138]
[1763820407405,0.05239779,126.34,126.32,0.05782138]
[1763820408100,0.05239779,126.34,126.32,7.18702138]
[1763820408997,3.01,126.33,126.32,0.05782138]
[1763820419422,0.05239779,126.34,126.32,7.18682138]
[1763820420127,0.05239779,126.34,126.32,10.94741894]
[1763820420323,3.01,126.38,126.36,7.127]
[1763820420528,3.01,126.42,126.35,110.8723]
[1763820420831,3.01,126.42,126.39,7.1251]
[1763820421219,3.01,126.42,126.35,16.7]
[1763820421421,0.05635172,126.42,126.39,0.05053799]
[1763820421623,3.01,126.45,126.4,110.8307]
[1763820421823,3.01,126.45,126.41,3.76059756]
[1763820422132,3.01,126.48,126.42,110.8101]
[1763820422723,0.0580037,126.46,126.44,0.05816494]
[1763820423324,0.0580037,126.46,126.44,110.85366494]
[1763820423535,0.0580037,126.46,126.44,0.05816494]
[1763820424234,0.0580037,126.46,126.44,7.18046494]
[1763820426637,0.0580037,126.46,126.44,0.05816494]
[1763820426839,3.07,126.52,126.44,110.85116494]
[1763820427038,3.07,126.52,126.44,110.793]
[1763820427238,3.07,126.52,126.46,7.1214]
[1763820427428,3.07,126.52,126.47,16.7]
[1763820428031,3.12391011,126.51,126.48,0.05267584]
[1763820428236,3.12639719,126.51,126.48,0.05782306]
[1763820432332,3.07,126.5,126.44,7.1222]
[1763820432531,3.07,126.5,126.42,16.7]
[1763820432738,3.07,126.5,126.42,23.8235]
[1763820432942,3.07,126.5,126.43,110.8043]
[1763820433334,3.07,126.47,126.45,0.05163724]
[1763820433530,3.13043542,126.47,126.45,7.18222957]
[1763820433730,3.07,126.5,126.45,110.84132957]
[1763820433929,3.07,126.5,126.45,110.7807]
[1763820434134,3.07,126.5,126.47,7.1204]
[1763820434333,3.07,126.5,126.43,110.8043]
[1763820434733,3.07,126.47,126.45,0.05598901]
[1763820434938,3.12722704,126.47,126.45,0.06037579]
[1763820435136,3.12722704,126.47,126.42,16.7]
[1763820435444,3.07,126.46,126.42,16.7]
[1763820435647,3.07,126.46,126.39,7.125]
[1763820435840,3.07,126.45,126.39,7.125]
[1763820436341,3.07,126.42,126.41,0.0595754]
[1763820437546,3.07,126.42,126.38,16.7]
[1763820437955,3.07,126.42,126.38,23.8257]
[1763820438450,3.07,126.42,126.39,0.05265382]
[1763820438841,0.05637574,126.43,126.39,0.05265382]
[1763820439051,3.07,126.48,126.41,110.8215]
[1763820439243,3.07,126.48,126.39,16.7]
[1763820439443,3.07,126.47,126.4,110.83]
[1763820439643,3.07,126.47,126.41,110.8217]
[1763820439948,3.07,126.47,126.4,110.8297]
[1763820440145,3.13049238,126.45,126.42,0.05944961]
[1763820440346,0.05277239,126.45,126.42,0.05730486]
[1763820440648,0.05277239,126.45,126.43,7.1228]
[1763820441952,0.05277239,126.45,126.43,23.8428]
[1763820442548,3.07,126.51,126.45,7.1219]
[1763820442955,3.07,126.51,126.43,127.5216]
[1763820443160,3.07,126.51,126.43,16.72]
[1763820443551,0.05630711,126.48,126.46,0.05556794]
[1763820447557,3.12630711,126.48,126.46,0.05556794]
[1763820448956,0.05630711,126.48,126.46,0.05556794]
[1763820451060,0.05630711,126.48,126.47,16.7]
[1763820454465,3.12630711,126.48,126.47,16.7]
[1763820455162,0.05630711,126.48,126.47,16.7]
[1763820456360,3.09630711,126.48,126.42,7.1232]
[1763820456559,3.09630711,126.48,126.4,127.5284]
[1763820456759,3.09630711,126.48,126.41,110.8186]
[1763820456760,3.04,126.48,126.41,110.8186]
[1763820456956,250.0,126.5,126.44,110.7945]
[1763820457156,3.24,126.49,126.44,16.7]
[1763820457362,3.29105187,126.48,126.45,7.17966491]
[1763820458361,0.05105187,126.48,126.46,7.1213]
[1763820458760,0.05105187,126.48,126.47,16.7]
[1763820460365,237.8781,126.5,126.48,7.1203]
[1763820460562,223.51051024,126.5,126.48,7.1203]
[1763820461266,208.18791024,126.5,126.48,7.1203]
[1763820461464,170.36177707,126.5,126.48,7.17103781]
[1763820461660,137.21667707,126.5,126.48,7.17103781]
[1763820461860,137.21667707,126.5,126.48,8.75103781]
[1763820461861,97.59577707,126.5,126.48,8.75103781]
[1763820462057,3.24,126.49,126.48,0.05073781]
[1763820462265,29.49077707,126.5,126.48,16.7]
[1763820462660,29.49077707,126.5,126.48,23.8202]
[1763820463060,3.24,126.49,126.42,110.8112]
[1763820463257,29.43021024,126.5,126.44,110.84373498]
[1763820463464,0.05650926,126.47,126.44,110.84373498]
[1763820463875,0.05650926,126.47,126.46,7.1213]
[1763820464069,0.05650926,126.47,126.46,23.8413]
[1763820466278,0.05650926,126.47,126.46,16.72]
[1763820466768,3.29650926,126.47,126.46,16.72]
[1763820467178,0.05650926,126.47,126.46,16.72]
[1763820470970,29.43021024,126.5,126.47,221.5365]
[1763820472075,29.48105243,126.5,126.47,221.59108997]
[1763820472467,29.48105243,126.5,126.49,7.1197]
[1763820472672,29.48105243,126.5,126.49,23.8397]
[1763820477981,5.243e-05,126.5,126.49,29.8397]
[1763820479080,3.24005243,126.5,126.49,16.7]
[1763820479281,5.243e-05,126.5,126.49,16.7]
[1763820481087,5.243e-05,126.5,126.47,0.05458997]
[1763820481479,3.24005243,126.5,126.47,0.05458997]
[1763820481789,5.243e-05,126.5,126.47,0.05458997]
[1763820483683,3.24005243,126.5,126.47,0.05458997]
[1763820483883,5.243e-05,126.5,126.47,0.05458997]
[1763820490392,5.243e-05,126.5,126.49,6.66413634]
[1763820490791,113.7539,126.56,126.47,6.05458997]
[1763820490994,3.06,126.54,126.48,16.7]
[1763820491291,113.7719,126.54,126.46,16.7]
[1763820491491,3.06,126.51,126.46,16.7]
[1763820491686,0.05999747,126.5,126.47,0.0504687]
[1763820491889,3.06,126.49,126.47,0.0504687]
[1763820493785,3.06,126.47,126.39,7.1251]
[1763820493989,3.06,126.47,126.4,16.7]
[1763820494593,10.1795,126.5,126.4,151.2978]
[1763820494790,0.05904152,126.46,126.44,0.06002614]
[1763820495996,0.05904152,126.46,126.45,16.7]
[1763820496493,3.11904152,126.46,126.45,16.7]
[1763820496696,0.05904152,126.46,126.45,16.7]
[1763820498904,0.05904152,126.46,126.45,19.09995266]
[1763820499405,0.05904152,126.46,126.44,0.06002614]
[1763820500707,3.11904152,126.46,126.44,0.06002614]
[1763820501801,0.05904152,126.46,126.44,0.06002614]
[1763820502299,3.11904152,126.46,126.44,0.06002614]
[1763820503204,3.11904152,126.46,126.41,16.7]
[1763820503797,3.06,126.45,126.41,16.7]
[1763820504303,3.06,126.44,126.42,0.05710209]
[1763820504495,10.23270067,126.44,126.42,0.05667362]
[1763820504701,3.06,126.43,126.42,0.05667362]
[1763820505208,3.06,126.42,126.37,16.7]
[1763820506308,3.06,126.4,126.38,0.05288978]
[1763820507402,0.05350542,126.41,126.38,0.05288978]
[1763820507602,0.05350542,126.41,126.38,2.45284244]
[1763820507806,3.11350542,126.41,126.38,2.45284244]
[1763820508810,3.11350542,126.41,126.38,0.05288978]
[1763820513014,0.05350542,126.41,126.38,0.05288978]
[1763820513206,3.11350542,126.41,126.38,0.05288978]
[1763820514314,0.05350542,126.41,126.38,0.05288978]
[1763820515311,0.05350542,126.41,126.39,7.1252]
[1763820517918,3.3,126.48,126.4,117.5052444]
[1763820518217,3.3,126.48,126.41,16.7]
[1763820518518,3.3,126.48,126.42,110.8124]
[1763820519015,0.05541356,126.46,126.44,7.18196003]
[1763820519212,0.05541356,126.46,126.45,16.7]
[1763820519420,3.35541356,126.46,126.44,0.05966003]
[1763820520812,3.35541356,126.46,126.43,13.71265816]
[1763820521017,3.35541356,126.46,126.4,16.7]
[1763820521318,3.3,126.46,126.4,16.7]
[1763820521815,0.05646851,126.44,126.42,0.05825532]
[1763820522325,3.35646851,126.44,126.42,0.05825532]
[1763820525418,3.3,126.43,126.42,0.05825532]
[1763820526321,3.3,126.43,126.4,16.7]
[1763820527016,3.3,126.43,126.36,7.1266]
[1763820527217,3.35702903,126.41,126.38,0.05051119]
[1763820528416,3.35702903,126.41,126.3,121.37092122]
[1763820528719,3.3,126.41,126.32,23.8289]
[1763820529313,3.3,126.37,126.35,0.05989995]
[1763820529518,3.3,126.37,126.35,0.05293747]
[1763820530215,3.3,126.37,126.32,16.7]
[1763820530609,3.3,126.37,126.26,121.40672122]
[1763820530816,3.3,126.36,126.27,20.46002759]
[1763820531415,3.3,126.32,126.3,0.058134]
[1763820541330,3.35327979,126.33,126.3,0.058134]
[1763820543329,3.35327979,126.33,126.27,16.7]
[1763820544332,3.35327979,126.33,126.29,0.06061278]
[1763820544530,7.1297,126.32,126.29,0.06061278]
[1763820544833,3.3,126.31,126.29,0.06061278]
[1763820545838,10.4302,126.31,126.29,0.00061278]
[1763820546034,3.27,126.3,126.23,7.134]
[1763820546236,3.27,126.3,126.22,127.6867]
[1763820546934,0.05372862,126.27,126.25,0.05686712]
[1763820547729,0.05372862,126.27,126.25,7.18996712]
[1763820547936,3.27,126.3,126.25,0.05686712]
[1763820548132,3.27,126.35,126.25,0.05686712]
[1763820548330,3.27,126.35,126.25,110.9619]
[1763820548730,3.27,126.35,126.25,116.9619]
[1763820548927,0.05168763,126.31,126.29,0.05533691]
[1763820549229,3.32168763,126.31,126.29,0.05533691]
[1763820550543,0.05168763,126.31,126.29,0.05533691]
[1763820551331,3.32168763,126.31,126.29,0.05533691]
[1763820551734,3.32168763,126.31,126.23,29.5450476]
[1763820552043,3.27,126.29,126.23,23.5450476]
[1763820552243,3.27,126.29,126.22,16.7]
[1763820552838,0.05714784,126.27,126.24,0.05786064]
[1763820554743,0.05714784,126.27,126.25,10.89417752]
[1763820555343,0.05714784,126.27,126.26,16.7]
[1763820559944,3.27,126.32,126.26,16.7]
[1763820560144,3.27,126.32,126.27,3.76107752]
[1763820560933,3.32339559,126.31,126.28,0.05923137]
[1763820562443,3.32339559,126.31,126.26,16.7]
[1763820562644,3.32339559,126.31,126.23,27.67033939]
[1763820562645,3.27,126.3,126.24,16.7]
[1763820562841,10.4005,126.3,126.24,16.7]
[1763820563041,3.27,126.29,126.24,16.7]
[1763820563444,0.05560323,126.28,126.25,0.05164156]
[1763820563641,3.27,126.27,126.25,0.05164156]
[1763820564945,3.27,126.27,126.19,3.76107752]
[1763820565151,3.27,126.27,126.19,20.46107752]
[1763820565554,3.27,126.27,126.19,27.59767752]
[1763820565750,3.27,126.27,126.19,51.14540807]
[1763820565950,3.27,126.23,126.22,0.05520787]
[1763820567553,3.27,126.23,126.19,16.7]
[1763820568454,3.27,126.23,126.2,0.05190024]
[1763820569155,3.27,126.22,126.2,0.05190024]
[1763820569544,3.27,126.22,126.13,3.76107752]
[1763820569747,3.27,126.21,126.13,20.46107752]
[1763820570347,3.27,126.21,126.13,27.60097752]
[1763820570555,0.06040556,126.18,126.13,27.60097752]
[1763820570742,0.06040556,126.18,126.13,127.7645]
[1763820571245,0.06040556,126.18,126.15,7.1387]
[1763820571549,0.06040556,126.18,126.14,111.0563]
[1763820572149,0.06040556,126.18,126.16,7.1381]
[1763820572349,0.06040556,126.18,126.17,16.7]
[1763820576852,3.2,126.25,126.18,7.1371]
[1763820577054,3.2,126.25,126.17,127.7304]
[1763820577359,3.2,126.25,126.17,16.7]
[1763820578058,3.12491697,126.22,126.2,0.05797505]
[1763820590859,3.12491697,126.22,126.12,117.76783462]
[1763820591062,3.07,126.21,126.09,111.096]
[1763820591264,3.07,126.21,126.1,16.7]
[1763820591565,3.07,126.18,126.11,7.1411]
[1763820591966,3.07,126.15,126.11,7.1411]
[1763820592165,3.07,126.15,126.1,16.7]
[1763820592864,3.07,126.15,126.11,7.141]
[1763820593874,0.05949924,126.16,126.12,2.41335042]
[1763820594069,3.12949924,126.16,126.12,2.41335042]
[1763820594667,3.12949924,126.16,126.1,26.25475042]
[1763820594873,3.12949924,126.16,126.11,7.1411]
[1763820596082,3.12949924,126.16,126.12,7.1406]
[1763820596276,0.05949924,126.16,126.12,2.41335042]
[1763820596877,3.12949924,126.16,126.12,2.41335042]
[1763820597173,3.12949924,126.16,126.13,7.1399]
[1763820597379,0.05949924,126.16,126.14,2.41335042]
[1763820597778,0.05949924,126.16,126.14,9.55255042]
[1763820597978,3.07,126.21,126.15,16.7]
[1763820598182,3.07,126.21,126.16,2.41335042]
[1763820598381,3.07,126.21,126.16,9.55165042]
[1763820598883,0.05913207,126.2,126.17,0.05507162]
[1763820599079,3.12913207,126.2,126.17,0.05507162]
[1763820600780,0.05913207,126.2,126.17,0.05507162]
[1763820600980,3.12913207,126.2,126.17,0.05507162]
[1763820603286,5.54248249,126.2,126.17,0.05507162]
[1763820603585,3.07,126.19,126.17,0.05507162]
[1763820605374,3.07,126.19,126.15,16.7]
[1763820605579,3.07,126.17,126.1,2.41335042]
[1763820605774,3.02,126.15,126.09,40.29972875]
[1763820605978,3.02,126.15,126.1,7.1412]
[1763820606487,3.07595633,126.14,126.1,111.0945]
[1763820606786,0.05595633,126.14,126.11,2.41335042]
[1763820607583,0.05595633,126.14,126.12,7.1405]
[1763820607783,0.05595633,126.14,126.13,2.41335042]
[1763820607987,0.05595633,126.14,126.13,19.11335042]
[1763820608788,0.05595633,126.14,126.13,16.7]
[1763820609193,3.02,126.2,126.15,7.1387]
[1763820609388,3.02,126.2,126.13,127.7635]
[1763820609588,3.02,126.2,126.16,7.1383]
[1763820609787,3.02,126.2,126.13,127.7635]
[1763820609988,3.02,126.2,126.13,16.7]
[1763820610183,110.975,126.24,126.13,16.7]
[1763820610184,3.02,126.17,126.15,0.05243452]
[1763820610384,3.07319622,126.17,126.15,0.05692519]
[1763820612993,0.05319622,126.17,126.15,0.05692519]
[1763820613491,3.07319622,126.17,126.15,0.05692519]
[1763820614791,3.07319622,126.17,126.11,16.7]
[1763820615903,3.02,126.15,126.11,16.7]
[1763820616197,111.0195,126.19,126.11,16.7]
[1763820616198,3.02,126.13,126.11,16.7]
[1763820616388,0.05991668,126.14,126.1,111.0941]
[1763820616592,0.060396,126.13,126.1,111.0941]
[1763820616892,0.060396,126.13,126.08,111.1118]
[1763820617198,0.060396,126.13,126.11,7.141]
[1763820617697,0.060396,126.13,126.11,23.841]
[1763820618702,3.02,126.19,126.14,7.1394]
[1763820619896,3.02,126.17,126.15,0.05503318]
[1763820622203,3.02,126.16,126.11,16.7]
[1763820622405,3.02,126.16,126.07,24.82586185]
[1763820622608,3.02,126.14,126.05,19.5542184]
[1763820622905,3.02,126.14,126.05,1.37985726]
[1763820623105,0.05030407,126.11,126.05,119.21753834]
[1763820623305,0.05030407,126.11,126.07,7.1432]
[1763820623599,0.05030407,126.11,126.08,16.7]
[1763820623905,3.07030407,126.11,126.08,16.7]
[1763820624501,0.05030407,126.11,126.08,16.7]
[1763820624805,3.07030407,126.11,126.08,16.7]
[1763820626005,0.05030407,126.11,126.08,16.7]
[1763820627108,0.05030407,126.11,126.08,23.8426]
[1763820628494,0.05030407,126.11,126.09,7.142]
[1763820630000,3.02,126.17,126.11,7.1407]
[1763820630198,3.02,126.17,126.12,16.7]
[1763820630909,0.06025439,126.16,126.13,0.06046897]
[1763820631108,3.08025439,126.16,126.13,0.06046897]
[1763820635207,0.06025439,126.16,126.13,0.06046897]
[1763820635812,3.09025439,126.16,126.09,19.5542184]
[1763820636113,3.09025439,126.16,126.06,40.3601028]
[1763820636309,111.0363,126.17,126.06,40.3601028]
[1763820636310,3.03,126.14,126.06,40.3601028]
[1763820636809,3.03,126.1,126.06,16.7]
[1763820638005,0.0582831,126.11,126.06,16.7]
[1763820638307,3.3582831,126.11,126.06,16.7]
[1763820641912,3.3,126.1,126.06,16.7]
[1763820642405,3.3,126.08,126.02,16.72]
[1763820642718,3.35307845,126.06,126.02,18.10021298]
[1763820644111,3.35307845,126.06,126.02,16.72]
[1763820645905,3.35307845,126.06,126.0,1.38054151]
[1763820646311,3.35307845,126.06,126.01,2.41714118]
[1763820646817,3.35307845,126.06,126.0,1.38054151]
[1763820647020,3.3,126.05,125.99,2.41714118]
[1763820647219,3.3,126.02,125.99,2.41714118]
[1763820647419,3.3,126.02,125.98,18.10076061]
[1763820648116,3.3,126.02,125.98,16.72]
[1763820648616,3.3,126.01,125.96,1.38097978]
[1763820648821,3.35844491,126.0,125.96,1.38097978]
[1763820649522,0.05844491,126.0,125.95,3.7800678]
[1763820649718,0.05844491,126.0,125.96,111.2176]
[1763820650025,0.05844491,126.0,125.98,7.1484]
[1763820650417,3.3,126.05,125.99,114.9680678]
[1763820650614,3.3,126.08,125.99,131.6880678]
[1763820650817,3.3,126.08,125.99,127.908]
[1763820651417,3.35565266,126.05,126.02,0.06039077]
[1763820651718,3.3574652,126.05,126.02,0.05128395]
[1763820655325,0.0574652,126.05,126.02,0.05128395]
[1763820656727,0.0574652,126.05,126.03,7.1455]
[1763820657928,0.0574652,126.05,126.03,23.8655]
[1763820661017,3.3,126.11,126.06,7.1437]
[1763820661230,3.3,126.11,126.03,16.72]
[1763820661827,3.3,126.11,126.05,7.1445]
[1763820662026,0.05752725,126.09,126.07,0.06020544]
[1763820662228,3.35752725,126.09,126.07,0.06020544]
[1763820663524,3.35752725,126.09,126.03,16.72]
[1763820664029,3.35752725,126.09,126.03,23.8656]
[1763820664225,3.35752725,126.09,126.03,127.8742]
[1763820664529,3.35752725,126.09,126.05,0.05837621]
[1763820665223,3.35752725,126.09,126.06,7.1439]
[1763820665423,0.05752725,126.09,126.05,0.05837621]
[1763820665724,0.05752725,126.09,126.07,7.1433]
[1763820670334,3.16752725,126.09,126.07,7.1433]
[1763820671029,0.05752725,126.09,126.07,7.1433]
[1763820673134,0.05752725,126.09,126.07,23.8633]
[1763820676229,3.16752725,126.09,126.07,16.72]
[1763820676638,3.16752725,126.09,126.05,0.05837621]
[1763820676833,0.05752725,126.09,126.05,0.05837621]
[1763820677038,3.16752725,126.09,126.05,0.05837621]
[1763820677743,0.05752725,126.09,126.07,7.1433]
[1763820678537,0.05752725,126.09,126.07,23.8633]
[1763820678939,3.16752725,126.09,126.07,16.72]
[1763820680144,3.16752725,126.09,126.05,7.20247621]
[1763820680939,3.16752725,126.09,126.06,7.144]
[1763820682638,3.16752725,126.09,126.05,0.05837621]
[1763820685143,3.16752725,126.09,126.06,7.1439]
[1763820685645,3.16752725,126.09,126.05,0.05837621]
[1763820686049,3.16752725,126.09,126.05,7.20287621]
[1763820687648,3.16752725,126.09,126.05,0.05837621]
[1763820688041,3.16752725,126.09,126.05,7.20247621]
[1763820688644,3.16752725,126.09,126.05,0.05837621]
[1763820691155,3.16752725,126.09,126.05,7.20287621]
[1763820692954,3.16752725,126.09,126.05,0.05837621]
[1763820695753,0.05752725,126.09,126.05,3.83276475]
[1763820695955,0.05752725,126.09,126.07,7.1433]
[1763820696756,0.05752725,126.09,126.05,7.20267621]
[1763820697355,0.05752725,126.09,126.06,7.1439]
[1763820697555,0.05752725,126.09,126.05,0.05837621]
[1763820699066,0.05752725,126.09,126.07,7.1434]
[1763820699265,0.05752725,126.09,126.08,16.72]
[1763820700264,3.04,126.13,126.08,23.8628]
[1763820700462,3.04,126.16,126.08,16.72]
[1763820700759,3.04,126.16,126.1,7.1416]
[1763820701058,3.04,126.16,126.08,127.8297]
[1763820701059,3.04,126.16,126.09,111.1031]
[1763820701263,0.05695289,126.14,126.11,0.05107239]
[1763820701462,0.05695289,126.14,126.12,16.72]
[1763820701970,0.05695289,126.14,126.12,23.8605]
[1763820702566,3.04,126.18,126.12,16.72]
[1763820703357,3.09209558,126.16,126.14,0.05639876]
[1763820703564,3.04,126.16,126.14,0.05639876]
[1763820703866,3.09429048,126.16,126.14,0.05639876]
[1763820705071,0.05429048,126.16,126.14,0.05639876]
[1763820705462,0.05429048,126.16,126.14,7.19569876]
[1763820706761,3.04,126.21,126.15,7.1388]
[1763820706969,3.04,126.21,126.16,16.7]
[1763820707768,3.10004927,126.2,126.17,0.05372379]
[1763820710577,0.06004927,126.2,126.17,0.05372379]
[1763820714369,3.04,126.19,126.17,0.05372379]
[1763820716374,0.06004927,126.2,126.17,0.05372379]
[1763820716770,0.06004927,126.2,126.18,2.41045126]
[1763820718181,3.10004927,126.2,126.17,0.05372379]
[1763820718482,3.10004927,126.2,126.17,2.46417505]
[1763820718878,3.10004927,126.2,126.17,0.05372379]
[1763820720386,0.06004927,126.2,126.17,2.46417505]
[1763820721183,3.10004927,126.2,126.17,2.46417505]
[1763820721384,3.10004927,126.2,126.17,0.05372379]
[1763820722091,0.06004927,126.2,126.19,2.41045126]
[1763820722277,3.04,126.26,126.19,2.41045126]
[1763820722482,3.04,126.26,126.17,7.63372379]
[1763820722483,3.04,126.26,126.21,2.41045126]
[1763820722879,3.04,126.26,126.18,7.137]
[1763820722880,3.04,126.26,126.19,2.41045126]
[1763820723280,3.04,126.23,126.21,0.05035674]
[1763820723685,3.04,126.23,126.21,0.00035674]
[1763820725689,3.04,126.23,126.16,16.7]
[1763820725690,3.23,126.22,126.16,16.7]
[1763820726683,0.05019201,126.2,126.18,0.05765116]
[1763820727285,0.05019201,126.2,126.18,7.19475116]
[1763820729492,3.28019201,126.2,126.18,0.05765116]
[1763820730290,0.05019201,126.2,126.18,0.05765116]
[1763820730886,3.28019201,126.2,126.18,7.19475116]
[1763820731087,3.28019201,126.2,126.18,0.05765116]
[1763820733197,0.05019201,126.2,126.18,0.05765116]
[1763820733589,3.28019201,126.2,126.18,0.05765116]
[1763820734995,3.28019201,126.2,126.18,7.19465116]
[1763820735197,0.05019201,126.2,126.18,7.19465116]
[1763820741202,3.28019201,126.2,126.18,7.19465116]
[1763820742707,0.05019201,126.2,126.18,7.19465116]
[1763820744999,0.05019201,126.2,126.19,16.7]
[1763820746011,3.28019201,126.2,126.19,16.7]
[1763820747007,3.28019201,126.2,126.18,7.19485116]
[1763820747210,3.28019201,126.2,126.18,0.05765116]
[1763820751413,3.28019201,126.2,126.14,2.41155484]
[1763820751602,3.28019201,126.2,126.12,19.11155484]
[1763820751603,3.23,126.18,126.12,19.11155484]
[1763820751802,3.23,126.18,126.12,16.7]
[1763820752007,3.23,126.16,126.12,16.7]
[1763820752402,0.05895532,126.15,126.13,0.05707641]
[1763820752710,3.23,126.14,126.13,0.05707641]
[1763820754808,3.23,126.13,126.05,19.5542184]
[1763820755010,2.41155484,126.1,126.03,2.41155484]
[1763820755317,3.23,126.09,126.02,2.41155484]
[1763820755813,3.1,126.06,126.04,0.05423303]
[1763820756209,3.1,126.05,125.99,9.55925484]
[1763820756412,3.1,126.05,126.01,2.41155484]
[1763820757106,0.05612826,126.04,126.02,0.05522331]
[1763820757310,3.21,126.06,126.01,2.41155484]
[1763820757512,3.26543769,126.04,126.01,2.46749787]
[1763820759822,0.05543769,126.04,126.01,2.46749787]
[1763820760011,0.05543769,126.04,126.01,113.64049787]
[1763820760217,0.05543769,126.04,126.03,2.41155484]
[1763820760619,0.05543769,126.04,126.03,19.11155484]
[1763820761711,3.21,126.09,126.03,26.25675484]
[1763820762719,0.05384596,126.07,126.05,0.05206724]
[1763820765424,0.05384596,126.07,126.05,111.18866724]
[1763820766519,0.05384596,126.07,126.06,16.7]
[1763820768225,3.21,126.12,126.07,7.143]
[1763820769322,3.26372488,126.11,126.08,0.05517238]
[1763820769522,3.27047308,126.11,126.08,0.05583198]